bitfinex-derivatives/quotes_ETHF0:USTF0_20241231
["timestamp","ask_amount","ask_price","bid_price","bid_amount"]
[1735620013296,1.78841663,3347.0,3346.9,2.44479245]
[1735620013602,1.48912663,3347.0,3346.5,7.01496391]
[1735620013799,1.37265663,3346.6,3346.5,7.01496391]
[1735620015104,0.29936,3346.2,3346.1,3.6277]
[1735620015500,1.37268663,3346.2,3346.1,3.6277]
[1735620016003,1.37268663,3346.2,3346.1,3.2078]
[1735620016201,1.07332663,3346.2,3346.0,7.01496391]
[1735620016502,0.29938,3346.0,3345.9,40.8]
[1735620016700,1.37270663,3346.0,3345.9,40.8]
[1735620016901,0.29938,3346.1,3345.9,40.8]
[1735620017102,3.4272144,3346.2,3345.9,40.8]
[1735620017399,0.29937,3346.1,3345.9,40.8]
[1735620017807,2.65325777,3346.1,3345.9,40.8]
[1735620019303,0.29937,3346.1,3345.9,40.8]
[1735620022213,1.07332663,3346.0,3345.9,40.8]
[1735620023012,1.37270663,3346.0,3345.9,40.8]
[1735620023611,0.29939,3345.9,3345.8,0.8853]
[1735620024122,0.29939,3345.9,3345.8,41.6853]
[1735620024814,1.37271663,3346.0,3345.8,41.6853]
[1735620025709,1.07332663,3346.0,3345.8,41.6853]
[1735620025915,0.29939,3345.9,3345.8,41.6853]
[1735620026414,1.07332663,3346.0,3345.8,41.6853]
[1735620026614,1.37271663,3346.0,3345.8,0.8853]
[1735620026814,0.29939,3345.9,3345.8,0.8853]
[1735620028816,1.07332663,3346.0,3345.8,0.8853]
[1735620028817,1.37270663,3346.0,3345.8,1.1847]
[1735620029216,1.37270663,3346.0,3345.8,0.8853]
[1735620030111,1.07332663,3346.0,3345.8,0.8853]
[1735620030511,1.37271663,3346.0,3345.8,0.8853]
[1735620032317,1.37270663,3346.0,3345.8,1.1847]
[1735620033015,1.37270663,3346.0,3345.8,0.8853]
[1735620033212,0.29939,3345.9,3345.8,0.8853]
[1735620034520,1.37271663,3346.0,3345.8,0.8853]
[1735620036122,1.07332663,3346.0,3345.8,0.8853]
[1735620036429,0.29939,3345.9,3345.8,0.8853]
[1735620037819,0.71489,3345.9,3345.8,0.8853]
[1735620038819,0.2994,3345.8,3345.7,0.4169]
[1735620039022,1.37272663,3345.8,3345.7,0.4169]
[1735620039821,4.58052663,3345.8,3345.7,0.4169]
[1735620040320,1.37272663,3345.8,3345.7,0.4169]
[1735620043222,1.07332663,3345.8,3345.5,0.4323]
[1735620043423,1.37274663,3345.6,3345.5,0.4323]
[1735620046319,1.07332663,3345.6,3345.4,0.4237]
[1735620046515,0.29943,3345.5,3345.4,0.4237]
[1735620046824,0.29943,3345.5,3344.6,3.2078]
[1735620046825,0.7486,3345.4,3344.6,3.2078]
[1735620047125,1.37281663,3344.8,3344.6,3.2078]
[1735620047329,1.37281663,3344.8,3344.3,11.7030146]
[1735620047725,6.37281663,3344.8,3344.3,11.7030146]
[1735620047926,7.23881663,3344.8,3344.3,11.7030146]
[1735620048131,4.968,3344.7,3344.3,11.7030146]
[1735620048323,5.65396326,3344.6,3344.3,11.7030146]
[1735620048730,5.65396326,3344.6,3343.8,3.2078]
[1735620048731,10.35445326,3344.6,3343.8,3.2078]
[1735620049028,10.35445326,3344.6,3343.6,0.8851]
[1735620049029,0.29959,3343.7,3343.6,0.4287]
[1735620049331,1.37291663,3343.7,3343.6,0.4287]
[1735620049531,1.07332663,3343.7,3343.4,0.4564]
[1735620049831,1.07332663,3343.5,3343.2,0.4432]
[1735620050027,1.07332663,3343.5,3343.3,0.4326]
[1735620050224,0.2996,3343.6,3343.3,0.4326]
[1735620050724,2.57263289,3343.7,3343.3,0.4326]
[1735620050924,2.27304289,3343.7,3343.3,0.4326]
[1735620051231,2.27304289,3343.7,3343.3,0.73222]
[1735620051723,2.57263289,3343.7,3343.3,0.4326]
[1735620053024,2.57263289,3343.7,3343.3,0.73222]
[1735620054334,2.57263289,3343.7,3343.3,0.4326]
[1735620055130,2.27304289,3343.7,3343.3,0.4326]
[1735620055330,0.2996,3343.6,3343.3,0.4326]
[1735620055531,2.27304289,3343.7,3343.3,0.4326]
[1735620055733,2.57263289,3343.7,3343.3,0.4326]
[1735620056327,0.2996,3343.6,3343.3,0.4326]
[1735620057636,2.57263289,3343.7,3343.3,0.4326]
[1735620058233,2.27304289,3343.7,3343.3,0.4326]
[1735620058434,0.2996,3343.6,3343.3,0.4326]
[1735620059337,2.27304289,3343.7,3343.3,0.4326]
[1735620059537,0.29962,3343.4,3343.3,0.4326]
[1735620059740,0.29961,3343.5,3343.3,0.4326]
[1735620061344,0.29962,3343.4,3343.3,0.4326]
[1735620062450,0.29962,3343.4,3343.2,0.4432]
[1735620062650,3.664,3343.8,3343.2,0.4432]
[1735620063741,2.27304289,3343.7,3343.2,0.4432]
[1735620063946,0.29962,3343.3,3343.2,0.4432]
[1735620069856,0.29962,3343.3,3343.1,0.4238]
[1735620069857,3.2078,3343.3,3343.1,0.4238]
[1735620070056,0.29965,3343.0,3342.9,0.4252]
[1735620070244,1.37609132,3343.0,3342.9,0.4252]
[1735620070548,1.07644132,3343.0,3342.8,0.4588]
[1735620070755,0.29966,3342.9,3342.8,0.4588]
[1735620071055,1.07644132,3343.0,3342.6,0.446]
[1735620071056,2.15288264,3343.0,3342.6,0.446]
[1735620071254,0.29969,3342.6,3342.5,0.4392]
[1735620071854,0.29971,3342.3,3342.0,0.29973]
[1735620072049,1.37617132,3342.1,3342.0,0.8454]
[1735620072245,0.29973,3342.1,3342.0,0.429]
[1735620073242,0.29973,3342.1,3341.6,0.4164]
[1735620073443,2.275044,3342.2,3341.7,41.69]
[1735620073646,0.29976,3341.8,3341.7,41.69]
[1735620073853,0.29976,3341.8,3341.7,0.89]
[1735620074053,0.29977,3341.8,3341.5,3.2078]
[1735620074354,2.275044,3341.9,3341.5,3.50758]
[1735620074355,2.574794,3341.9,3341.5,3.50758]
[1735620074545,2.275044,3342.2,3341.5,3.50758]
[1735620074949,0.29976,3341.8,3341.5,3.50758]
[1735620075155,2.275044,3342.2,3341.5,3.2078]
[1735620075351,2.275044,3341.9,3341.5,3.2078]
[1735620075549,0.29978,3341.6,3341.5,3.2078]
[1735620075752,2.574824,3341.6,3341.5,3.2078]
[1735620080159,0.8888,3341.8,3341.5,3.2078]
[1735620080362,0.4555,3341.8,3341.6,0.29978]
[1735620080754,0.4555,3341.8,3341.5,3.50758]
[1735620081151,0.4412,3342.2,3341.5,3.2078]
[1735620081454,4.968,3343.1,3341.9,5.482844]
[1735620081455,2.275044,3343.1,3341.9,5.482844]
[1735620081654,0.29966,3342.9,3342.5,0.29969]
[1735620081950,0.29967,3342.8,3342.6,0.4476]
[1735620082356,0.4602,3343.0,3342.6,0.4476]
[1735620082664,0.29966,3342.9,3342.6,0.4476]
[1735620082856,0.29968,3342.8,3342.6,0.4476]
[1735620084158,0.4602,3343.0,3342.6,0.4476]
[1735620084461,0.29966,3342.9,3342.6,0.4476]
[1735620086050,3.50743,3343.3,3342.6,0.4476]
[1735620086262,0.4517,3343.5,3343.1,0.29964]
[1735620086458,0.4517,3343.5,3343.2,0.4352]
[1735620087358,2.275044,3343.6,3343.3,0.29962]
[1735620087661,2.275044,3343.6,3343.4,0.4227]
[1735620091164,0.29962,3343.3,3343.2,0.4352]
[1735620091365,2.574664,3343.3,3343.2,0.4352]
[1735620091565,2.275044,3343.3,3343.2,0.4352]
[1735620091961,2.275044,3343.3,3343.2,0.73483]
[1735620092163,0.4354,3343.9,3343.2,0.73483]
[1735620092164,2.275044,3343.6,3343.2,0.4352]
[1735620092364,2.275044,3343.6,3343.3,0.29962]
[1735620092567,2.275044,3343.6,3343.2,0.4352]
[1735620092865,2.574644,3343.6,3343.2,0.4352]
[1735620093267,2.275044,3343.6,3343.2,0.4352]
[1735620093461,0.4405,3343.9,3343.2,0.4352]
[1735620093462,2.574664,3343.3,3343.2,0.4352]
[1735620093667,2.574664,3343.3,3343.0,3.2078]
[1735620093668,2.275044,3343.3,3343.0,3.2078]
[1735620093970,0.4525,3343.2,3343.0,3.2078]
[1735620094268,0.893,3343.2,3343.0,3.2078]
[1735620094565,1.19264,3343.2,3343.0,3.2078]
[1735620095972,0.29964,3343.1,3343.0,3.2078]
[1735620096268,0.893,3343.2,3343.0,3.2078]
[1735620096468,1.19264,3343.2,3343.0,3.2078]
[1735620097165,0.893,3343.2,3343.0,3.2078]
[1735620097367,0.29964,3343.1,3343.0,3.2078]
[1735620098673,0.893,3343.2,3342.8,0.8851]
[1735620098870,0.29966,3342.9,3342.8,0.8851]
[1735620099372,0.893,3343.2,3342.8,0.8851]
[1735620099570,0.29966,3343.0,3342.8,0.8851]
[1735620100375,0.893,3343.2,3342.8,0.8851]
[1735620100676,0.29965,3343.1,3342.8,0.8851]
[1735620101176,1.19263,3343.2,3342.8,4.39257]
[1735620101872,0.29964,3343.1,3342.8,4.0929]
[1735620104470,2.275044,3343.3,3342.8,4.0929]
[1735620104776,2.34467344,3343.5,3342.9,0.432]
[1735620104968,2.34467344,3343.5,3343.0,0.29965]
[1735620104969,0.29962,3343.4,3343.0,0.29965]
[1735620105169,2.34467344,3343.4,3343.1,0.29964]
[1735620106579,0.29961,3343.5,3343.1,0.29964]
[1735620106978,0.29962,3343.4,3343.0,0.29965]
[1735620107177,0.29961,3343.5,3343.1,0.29964]
[1735620108577,0.29962,3343.4,3342.9,0.432]
[1735620108875,0.29962,3343.4,3343.0,0.29965]
[1735620110573,2.275044,3343.7,3342.9,0.432]
[1735620110772,0.29964,3343.2,3342.9,0.432]
[1735620111479,0.4434,3343.3,3342.9,0.432]
[1735620111680,0.29964,3343.2,3342.9,0.432]
[1735620112277,0.29964,3343.1,3342.8,4.39257]
[1735620113284,0.74044,3343.2,3342.8,4.39257]
[1735620113681,0.4408,3343.2,3342.8,4.0929]
[1735620113980,0.29965,3343.1,3342.8,4.0929]
[1735620114182,0.4408,3343.2,3342.9,0.29966]
[1735620114385,0.4408,3343.2,3343.0,0.4192]
[1735620114785,2.34467344,3343.5,3343.0,0.4192]
[1735620114983,0.29962,3343.4,3343.0,0.4192]
[1735620115178,0.29962,3343.4,3343.1,0.29964]
[1735620115378,2.34467344,3343.5,3343.0,0.4192]
[1735620115583,0.29963,3343.3,3343.0,0.71885]
[1735620116290,0.29962,3343.4,3343.0,0.71885]
[1735620116589,0.29963,3343.3,3343.0,0.4192]
[1735620117584,0.29963,3343.3,3343.0,0.71885]
[1735620117993,0.29962,3343.4,3343.0,0.71885]
[1735620120689,0.29963,3343.3,3343.0,0.71885]
[1735620121189,3.21597344,3343.6,3343.0,0.4192]
[1735620121390,0.29962,3343.4,3343.0,0.71885]
[1735620122186,0.29963,3343.3,3343.0,0.71885]
[1735620122386,0.29963,3343.2,3343.0,0.4192]
[1735620123192,0.29963,3343.3,3343.0,0.4192]
[1735620124591,2.34467344,3343.5,3343.0,0.4192]
[1735620124793,0.29964,3343.2,3342.8,4.39256]
[1735620125191,0.29966,3342.9,3342.8,4.0929]
[1735620126384,0.29966,3342.9,3342.8,3.636]
[1735620127987,2.64433344,3342.9,3342.8,3.2078]
[1735620128786,2.34467344,3342.9,3342.3,7.03237461]
[1735620129099,0.2997,3342.5,3342.3,7.03237461]
[1735620130492,8.32345,3343.0,3342.3,7.03237461]
[1735620130797,3.53403796,3342.4,3342.2,3.2078]
[1735620131093,0.8798,3342.3,3342.2,3.2078]
[1735620131501,3.23560609,3342.3,3342.2,3.2078]
[1735620131795,3.53531609,3342.3,3342.2,3.2078]
[1735620132096,3.23560609,3342.3,3342.2,3.2078]
[1735620132894,2.80200609,3342.3,3342.2,3.2078]
[1735620133289,2.35580609,3342.3,3342.2,3.2078]
[1735620133494,2.35580609,3342.3,3342.2,3.50752]
[1735620134494,2.35580609,3342.7,3342.2,8.33508914]
[1735620134696,2.35580609,3342.7,3342.3,0.4189]
[1735620134995,0.2997,3342.5,3342.3,0.4189]
[1735620135895,0.4251,3342.6,3342.3,0.4189]
[1735620135896,3.08059609,3342.6,3342.3,0.4189]
[1735620136195,2.35580609,3342.6,3342.4,0.2997]
[1735620137196,2.35580609,3342.7,3342.4,0.2997]
[1735620138094,2.35580609,3342.7,3342.5,0.29969]
[1735620141500,2.35580609,3342.7,3342.4,0.2997]
[1735620141794,2.65548609,3342.7,3342.3,5.42498541]
[1735620142003,2.65548609,3342.7,3342.4,0.2997]
[1735620142700,2.65548609,3342.7,3342.3,5.42498541]
[1735620145404,2.65548609,3342.7,3342.3,0.71861]
[1735620146600,2.35580609,3342.6,3342.3,0.71861]
[1735620147603,2.65548609,3342.7,3342.3,0.71861]
[1735620147805,2.65548609,3342.7,3342.3,3.92641]
[1735620148200,2.65548609,3342.7,3342.4,0.2997]
[1735620148401,2.65548609,3342.7,3342.3,3.6267]
[1735620148598,2.65548609,3342.7,3342.3,3.92641]
[1735620148799,2.35580609,3342.6,3342.3,3.92641]
[1735620149303,2.35580609,3342.6,3342.3,3.6267]
[1735620149509,2.35580609,3342.6,3342.5,2.574744]
[1735620149809,2.35580609,3342.6,3342.5,43.374744]
[1735620150400,2.35580609,3343.0,3342.5,48.20143304]
[1735620150602,2.35580609,3343.0,3342.8,0.29967]
[1735620150807,2.35580609,3343.0,3342.9,1.16776]
[1735620151906,2.35580609,3343.1,3342.9,1.16776]
[1735620152413,2.35580609,3343.1,3343.0,0.29965]
[1735620153406,0.10330609,3343.1,3343.0,5.29965]
[1735620153603,3.53403796,3343.3,3343.2,0.29963]
[1735620153803,3.53403796,3343.3,3343.2,3.50743]
[1735620154611,0.29958,3343.8,3343.2,3.2078]
[1735620154813,0.29958,3343.8,3343.6,0.2996]
[1735620155107,0.29958,3343.8,3343.7,0.4412]
[1735620155302,0.29958,3343.8,3343.7,0.883]
[1735620155505,3.83360796,3343.9,3343.7,0.883]
[1735620156406,0.4228,3344.0,3343.7,0.883]
[1735620156609,0.4228,3344.0,3343.9,0.29957]
[1735620157411,0.4228,3344.0,3343.7,0.29958]
[1735620157615,0.72236,3344.0,3343.8,0.4173]
[1735620157910,0.72236,3344.0,3343.8,0.71688]
[1735620158111,0.4228,3344.0,3343.8,0.71688]
[1735620158300,0.4228,3344.0,3343.9,0.29957]
[1735620159408,0.4228,3344.0,3343.8,0.4173]
[1735620159409,0.4228,3344.0,3343.8,0.71688]
[1735620160307,0.4228,3344.0,3343.8,0.4173]
[1735620160508,0.4228,3344.0,3343.9,0.29957]
[1735620165026,0.4228,3344.0,3343.9,3.50737]
[1735620167831,0.4228,3344.0,3343.9,0.29957]
[1735620168425,0.4228,3344.0,3343.9,3.50737]
[1735620169331,0.72236,3344.0,3343.9,3.2078]
[1735620171931,0.4228,3344.0,3343.9,3.2078]
[1735620177531,0.4228,3344.0,3343.8,0.29958]
[1735620177728,0.4228,3344.0,3343.9,0.29957]
[1735620179338,0.4228,3344.0,3343.9,0.75907]
[1735620180631,0.4228,3344.0,3343.9,1.17717]
[1735620181034,0.417,3344.3,3343.9,0.8776]
[1735620181233,0.8409,3344.3,3344.1,0.29955]
[1735620183232,3.53403796,3344.8,3344.2,2.25145131]
[1735620183443,3.53403796,3344.8,3344.7,4.58275131]
[1735620183741,4.69255,3345.0,3344.9,0.29948]
[1735620183936,4.69255,3345.0,3344.9,1.37493131]
[1735620184239,3.53018182,3345.0,3344.9,0.29948]
[1735620185340,7.338245,3345.6,3345.2,0.29945]
[1735620185341,0.29942,3345.6,3345.2,0.29945]
[1735620185533,0.4258,3345.5,3345.2,3.50725]
[1735620185731,0.8479,3345.5,3345.2,3.2078]
[1735620185942,0.8479,3345.5,3345.2,3.50725]
[1735620187837,1.14733,3345.5,3345.2,3.50725]
[1735620188136,0.8479,3345.5,3345.2,3.50725]
[1735620188348,0.8479,3345.5,3344.8,3.2078]
[1735620188642,0.29947,3345.1,3344.8,3.50729]
[1735620188831,0.4223,3345.0,3344.8,3.50729]
[1735620189141,0.4477,3344.9,3344.4,0.4159]
[1735620189338,0.29949,3344.8,3344.4,0.4159]
[1735620189538,0.8992,3344.9,3344.3,3.50733]
[1735620189539,0.2995,3344.7,3344.3,3.50733]
[1735620189846,0.29951,3344.6,3344.3,3.2078]
[1735620190236,0.29949,3344.8,3344.3,3.50733]
[1735620190644,0.29951,3344.7,3344.3,3.2078]
[1735620191144,0.29951,3344.6,3344.3,3.2078]
[1735620191346,5.47780989,3344.8,3343.8,3.6425]
[1735620191642,5.47780989,3344.8,3343.9,0.29957]
[1735620191848,0.29952,3344.5,3344.0,0.29956]
[1735620192047,0.29953,3344.5,3344.0,0.29956]
[1735620192347,0.4166,3344.4,3344.0,0.29956]
[1735620194439,0.4166,3344.4,3343.8,3.6425]
[1735620194645,0.4166,3344.4,3344.1,0.29955]
[1735620195349,0.4166,3344.4,3343.8,5.91250989]
[1735620195545,0.4166,3344.4,3344.1,0.29954]
[1735620196547,0.4166,3344.4,3343.9,0.29957]
[1735620196749,0.4166,3344.4,3344.1,0.29955]
[1735620198350,0.4166,3344.4,3343.8,5.91250989]
[1735620198657,0.4166,3344.4,3344.2,0.29954]
[1735620199349,0.4166,3344.4,3343.8,5.91250989]
[1735620199556,0.4166,3344.4,3344.1,0.29955]
[1735620199847,0.4166,3344.4,3343.9,0.29957]
[1735620199848,0.29954,3344.3,3343.9,0.29957]
[1735620200052,0.4453,3344.2,3343.9,0.29957]
[1735620200251,0.4453,3344.2,3343.8,3.6425]
[1735620200252,0.4453,3344.2,3344.0,0.29956]
[1735620201557,0.4453,3344.2,3343.9,0.29957]
[1735620202954,0.29957,3344.0,3343.8,3.2078]
[1735620203356,0.4216,3343.9,3343.8,3.2078]
[1735620203556,0.72117,3343.9,3343.8,3.2078]
[1735620205555,5.89940989,3343.9,3343.3,0.00205181]
[1735620205753,0.29958,3343.8,3343.3,0.00205181]
[1735620205953,5.89940989,3343.9,3343.3,0.00205181]
[1735620206353,0.29961,3343.5,3343.3,0.00205181]
[1735620207159,0.29962,3343.4,3343.3,0.00205181]
[1735620207660,0.29961,3343.5,3343.3,0.00205181]
[1735620207858,0.2996,3343.6,3343.3,0.00205181]
[1735620208554,5.89940989,3343.9,3343.3,0.00205181]
[1735620208858,0.29961,3343.5,3343.3,0.00205181]
[1735620209962,0.29962,3343.4,3343.3,0.00205181]
[1735620210154,5.89940989,3343.9,3343.3,0.00205181]
[1735620210351,0.29961,3343.6,3343.3,0.00205181]
[1735620211458,0.29959,3343.7,3343.3,0.30167181]
[1735620212858,0.2996,3343.6,3343.3,0.00205181]
[1735620213864,0.2996,3343.6,3343.3,0.42825181]
[1735620216061,0.29961,3343.5,3343.3,0.42825181]
[1735620216365,0.29962,3343.4,3343.3,0.42825181]
[1735620217365,0.29962,3343.4,3343.3,0.00205181]
[1735620219265,0.74602,3343.4,3343.3,0.00205181]
[1735620228273,0.74602,3343.4,3342.8,0.8917]
[1735620228274,0.4464,3343.4,3342.8,0.8917]
[1735620228471,0.29966,3342.9,3342.8,0.8917]
[1735620229368,3.2078,3343.0,3342.8,0.8917]
[1735620229765,0.29966,3342.9,3342.8,0.8917]
[1735620230968,0.29740301,3342.9,3342.8,0.8917]
[1735620234971,3.2078,3343.0,3342.8,0.8917]
[1735620235173,3.50745,3343.0,3342.8,0.8917]
[1735620236070,0.29966,3342.9,3342.8,0.8917]
[1735620238873,3.50745,3343.0,3342.8,0.8917]
[1735620240878,0.4464,3343.4,3342.9,0.29966]
[1735620240879,0.29964,3343.2,3342.9,0.29966]
[1735620241075,0.29963,3343.3,3342.9,0.29966]
[1735620241469,0.29963,3343.2,3342.8,1.19136]
[1735620241873,0.29965,3343.0,3342.8,0.8917]
[1735620242073,3.6542,3343.4,3342.8,0.8917]
[1735620242680,0.29965,3343.0,3342.8,0.8917]
[1735620244179,0.29966,3342.9,3342.8,0.8917]
[1735620245786,0.29966,3342.9,3342.8,0.4307]
[1735620245978,0.71646,3342.9,3342.8,0.4307]
[1735620246980,0.4168,3342.9,3342.5,0.8947]
[1735620247177,0.29969,3342.6,3342.5,0.8947]
[1735620251881,0.2997,3342.4,3342.3,0.4372]
[1735620252876,0.29971,3342.3,3342.2,0.8949]
[1735620253185,0.29971,3342.3,3342.1,4.70265262]
[1735620253186,0.29972,3342.2,3342.1,4.70265262]
[1735620253489,3.2078,3342.2,3342.0,4.70265262]
[1735620253685,0.73003,3342.1,3342.0,4.70265262]
[1735620253880,3.00003989,3342.1,3342.0,4.70265262]
[1735620254083,3.00003989,3342.1,3342.0,3.14265262]
[1735620254983,0.29978,3341.6,3341.5,0.4174]
[1735620258794,0.2998,3341.3,3341.2,3.2078]
[1735620258989,2.56980989,3341.3,3341.2,3.2078]
[1735620261888,2.27000989,3341.3,3340.7,4.5263]
[1735620262086,2.27000989,3340.9,3340.7,1.3185]
[1735620275310,2.56984989,3340.9,3340.7,1.3185]
[1735620278510,2.27000989,3340.9,3340.7,1.3185]
[1735620280007,2.56984989,3340.9,3340.7,1.3185]
[1735620283410,2.27000989,3340.9,3340.7,1.3185]
[1735620283713,2.56984989,3340.9,3340.7,1.3185]
[1735620285618,0.29985,3340.8,3340.7,1.3185]
[1735620289917,5.47780989,3341.1,3340.7,1.3185]
[1735620290115,5.77762989,3341.1,3340.7,1.3185]
[1735620290311,1.07771052,3340.8,3340.7,1.3185]
[1735620292217,2.576756,3340.8,3340.7,1.3185]
[1735620293912,2.576756,3340.8,3340.3,3.2078]
[1735620293913,0.29988,3340.4,3340.3,3.2078]
[1735620294117,2.576786,3340.4,3340.3,3.2078]
[1735620297122,4.91751871,3340.4,3340.3,3.2078]
[1735620297314,4.61763871,3340.4,3339.8,1.3354]
[1735620297514,3.2078,3340.2,3339.8,1.3354]
[1735620298214,0.29991,3340.1,3339.8,1.3354]
[1735620298413,2.64064271,3340.1,3339.8,1.3354]
[1735620298611,2.34073271,3340.1,3339.8,1.3354]
[1735620298816,2.276906,3339.9,3339.8,1.3354]
[1735620299717,2.576836,3339.9,3339.8,1.3354]
[1735620300217,4.61763871,3339.9,3339.8,1.3354]
[1735620300424,2.34073271,3339.9,3339.8,1.3354]
[1735620300625,2.34073271,3339.9,3339.8,1.63534]
[1735620300826,2.34073271,3339.9,3339.8,1.3354]
[1735620301226,2.34073271,3339.9,3339.8,1.63534]
[1735620301622,2.34073271,3339.9,3339.8,1.3354]
[1735620301823,2.34073271,3340.1,3339.8,1.63533]
[1735620302217,2.34073271,3340.1,3339.8,1.3354]
[1735620302423,2.34073271,3340.1,3340.0,0.29992]
[1735620303031,2.34073271,3340.1,3339.8,1.3354]
[1735620303327,0.29992,3340.0,3339.8,1.3354]
[1735620303528,5.54853271,3340.1,3339.8,1.3354]
[1735620303831,0.29992,3340.0,3339.8,1.3354]
[1735620304330,2.34073271,3340.0,3339.8,1.3354]
[1735620304532,2.576836,3339.9,3339.8,1.3354]
[1735620306025,6.10360731,3339.9,3339.8,1.3354]
[1735620306227,6.10360731,3339.9,3339.8,0.9073]
[1735620307029,2.576836,3339.9,3339.8,0.9073]
[1735620307223,0.29995,3339.7,3339.4,0.4383]
[1735620307423,0.29996,3339.6,3339.4,1.3452]
[1735620307725,0.29995,3339.7,3339.4,1.3452]
[1735620308125,0.4231,3339.8,3339.4,1.3452]
[1735620308320,2.276906,3339.6,3339.4,1.3452]
[1735620308526,0.29997,3339.5,3339.4,1.3452]
[1735620310030,2.65073255,3339.5,3339.4,1.3452]
[1735620310529,2.65073255,3339.5,3339.4,0.9069]
[1735620310929,0.29997,3339.5,3339.4,0.9069]
[1735620311123,4.92762855,3339.6,3339.4,0.9069]
[1735620311528,0.29997,3339.5,3339.4,0.9069]
[1735620312031,4.92762855,3339.6,3339.4,0.9069]
[1735620312628,4.92762855,3339.6,3339.5,0.4575]
[1735620314734,4.62766855,3339.6,3339.4,0.9069]
[1735620315033,0.29997,3339.5,3339.4,0.9069]
[1735620315735,4.92762855,3339.6,3339.4,0.9069]
[1735620315936,0.29997,3339.5,3339.4,0.9069]
[1735620317137,0.29997,3339.5,3339.4,0.45]
[1735620320739,3.50777,3339.5,3339.4,0.45]
[1735620321942,5.85853255,3339.5,3339.4,0.45]
[1735620324241,2.35076255,3339.5,3339.4,0.45]
[1735620324845,2.576866,3339.6,3339.4,0.45]
[1735620325545,2.276906,3339.6,3339.4,0.45]
[1735620326340,2.576866,3339.6,3339.4,0.45]
[1735620328144,2.276906,3339.6,3339.4,0.45]
[1735620329447,2.576866,3339.6,3339.4,0.45]
[1735620333147,2.276906,3339.6,3339.4,0.45]
[1735620333346,0.29997,3339.5,3339.4,0.45]
[1735620334952,0.73037,3339.5,3339.4,0.45]
[1735620335249,3.93817,3339.5,3339.4,0.45]
[1735620335454,0.29998,3339.3,3339.2,0.4289]
[1735620335754,0.29999,3339.2,3339.1,0.423]
[1735620338153,0.29999,3339.2,3338.9,0.437]
[1735620338350,0.29999,3339.2,3339.0,0.4276]
[1735620339549,3.52614383,3339.3,3339.0,0.4276]
[1735620339854,3.52614383,3339.2,3339.0,0.4276]
[1735620340748,3.52614383,3339.2,3339.1,0.3]
[1735620340947,3.52614383,3339.2,3339.0,0.4276]
[1735620341148,2.3508418,3339.3,3339.0,0.72761]
[1735620341954,2.6508318,3339.3,3339.0,0.4276]
[1735620342854,0.3,3339.2,3339.0,0.4276]
[1735620343057,2.6508318,3339.3,3339.0,0.4276]
[1735620343355,2.3508418,3339.3,3339.0,0.4276]
[1735620343552,0.29999,3339.2,3339.0,0.4276]
[1735620345151,2.3508418,3339.1,3339.0,0.4276]
[1735620345542,2.6508418,3339.1,3339.0,0.4276]
[1735620347853,3.82614383,3339.1,3339.0,0.4276]
[1735620349150,4.99135767,3339.1,3339.0,0.4276]
[1735620350356,0.3,3339.1,3339.0,0.4276]
[1735620351153,6.1656875,3339.2,3339.0,0.4276]
[1735620351450,0.3,3339.1,3339.0,0.4276]
[1735620351655,6.1656875,3339.2,3339.0,0.4276]
[1735620351856,5.00733926,3339.2,3339.0,0.4276]
[1735620352153,0.3,3339.1,3339.0,0.4276]
[1735620353855,3.5078,3339.1,3339.0,0.4276]
[1735620354453,8.21513926,3339.1,3339.0,0.4276]
[1735620355646,5.00733926,3339.1,3339.0,0.4276]
[1735620355958,4.70733926,3339.1,3339.0,0.4276]
[1735620356757,5.00733926,3339.1,3339.0,0.4276]
[1735620357058,9.0734875,3339.3,3339.0,0.4276]
[1735620357059,5.00733926,3339.2,3339.0,0.4276]
[1735620357859,4.70733926,3339.2,3339.0,0.4276]
[1735620358356,4.70733926,3339.2,3339.1,0.3]
[1735620359059,4.70733926,3339.2,3339.1,3.5078]
[1735620359859,2.35376445,3339.2,3339.1,3.5078]
[1735620360056,2.35376445,3339.2,3339.1,0.3]
[1735620361157,2.65375445,3339.2,3339.0,7.48157894]
[1735620361353,2.35376445,3339.2,3339.0,7.48157894]
[1735620361548,2.35376445,3339.2,3339.0,7.78158894]
[1735620361753,2.35376445,3339.2,3339.0,7.48157894]
[1735620361956,2.65376445,3339.2,3339.0,7.48157894]
[1735620362159,2.35376445,3339.2,3339.0,7.48157894]
[1735620362754,3.83064667,3339.1,3339.0,0.4276]
[1735620363261,3.53064667,3339.1,3338.9,0.437]
[1735620363962,3.83064667,3339.1,3338.9,0.437]
[1735620364461,0.30001,3339.0,3338.9,0.437]
[1735620365655,4.70733926,3339.1,3338.6,7.05397894]
[1735620365857,0.30004,3338.7,3338.6,7.05397894]
[1735620367467,0.30004,3338.7,3338.4,1.3205]
[1735620368666,3.52901478,3338.6,3338.4,1.3205]
[1735620369964,0.30004,3338.7,3338.4,1.3205]
[1735620369965,2.35204516,3338.5,3338.4,1.3205]
[1735620371263,2.65209516,3338.5,3338.4,1.3205]
[1735620372565,2.65209516,3338.5,3338.4,0.869]
[1735620374060,2.65209516,3338.5,3338.4,0.4185]
[1735620374262,2.65209516,3338.5,3338.3,3.2078]
[1735620374563,0.30006,3338.4,3338.3,3.2078]
[1735620375366,2.65210516,3338.5,3338.3,3.2078]
[1735620375668,0.30008,3338.2,3338.1,5.16236714]
[1735620375864,0.30008,3338.2,3338.1,4.71596714]
[1735620376263,0.30008,3338.3,3338.1,4.71596714]
[1735620376663,0.4497,3338.2,3338.1,4.71596714]
[1735620377273,0.4497,3338.2,3338.0,0.4511]
[1735620377470,0.4497,3338.2,3338.0,0.7512]
[1735620377671,0.4497,3338.2,3338.0,0.4511]